[Event "Early-Titled-Tuesday-Blitz-December-26-2023"]
[Site "Chess.com"]
[Date "2023.12.26"]
[Round "4"]
[White "Artyom_ChessMate"]
[Black "TanitoluwaAps116"]
[Result "1-0"]
[WhiteElo "2520"]
[BlackElo "2723"]
[TimeControl "180+1"]
[EndTime "8:38:30 PST"]
[Termination "Artyom_ChessMate won on time"]

1. e4 {[%clk 0:03:00.9]} 1... c5 {[%clk 0:02:55]} 2. Nc3 {[%clk 0:03:00.7]} 2...
Nc6 {[%clk 0:02:53.8]} 3. Bb5 {[%clk 0:03:00.1]} 3... g6 {[%clk 0:02:52.5]} 4.
Bxc6 {[%clk 0:03:00]} 4... bxc6 {[%clk 0:02:51.4]} 5. d3 {[%clk 0:03:00.9]} 5...
Bg7 {[%clk 0:02:50.9]} 6. f4 {[%clk 0:03:01.4]} 6... d5 {[%clk 0:02:50.2]} 7.
Nf3 {[%clk 0:03:01.7]} 7... h5 {[%clk 0:02:48.5]} 8. O-O {[%clk 0:03:01.5]} 8...
Bg4 {[%clk 0:02:46.7]} 9. h3 {[%clk 0:02:58.3]} 9... Bd4+ {[%clk 0:01:26.5]} 10.
Kh2 {[%clk 0:02:49.5]} 10... e6 {[%clk 0:01:25.1]} 11. Qe1 {[%clk 0:02:47.4]}
11... Bxf3 {[%clk 0:01:11]} 12. Rxf3 {[%clk 0:02:45.9]} 12... Nf6 {[%clk
0:00:58.4]} 13. Na4 {[%clk 0:02:27.4]} 13... c4 {[%clk 0:00:39.1]} 14. c3 {[%clk
0:01:59.3]} 14... Ng4+ {[%clk 0:00:11.7]} 15. Kh1 {[%clk 0:01:48.4]} 15... Bb6
{[%clk 0:00:11.3]} 16. Nxb6 {[%clk 0:01:41.6]} 16... Qxb6 {[%clk 0:00:04.8]} 17.
d4 {[%clk 0:01:38.7]} 17... Qd8 {[%clk 0:00:03.9]} 18. f5 {[%clk 0:01:23.5]}
18... Nf6 {[%clk 0:00:02.2]} 19. exd5 {[%clk 0:01:20.2]} 19... Nxd5 {[%clk
0:00:01.4]} 20. fxe6 {[%clk 0:01:18.8]} 20... f5 {[%clk 0:00:01.4]} 21. h4
{[%clk 0:01:12.1]} 21... Qf6 {[%clk 0:00:01.6]} 22. Bg5 {[%clk 0:01:10.5]} 22...
Qg7 {[%clk 0:00:02.3]} 23. e7 {[%clk 0:01:05.5]} 23... Qf7 {[%clk 0:00:02.5]}
24. Qe5 {[%clk 0:01:05.1]} 24... Rg8 {[%clk 0:00:02.5]} 25. b3 {[%clk
0:01:02.3]} 25... Rc8 {[%clk 0:00:03.3]} 26. bxc4 {[%clk 0:01:02.3]} 26... Nb6
{[%clk 0:00:03.5]} 27. Rb1 {[%clk 0:00:47.7]} 27... Nxc4 {[%clk 0:00:03.5]} 28.
Qc5 {[%clk 0:00:48]} 28... Nb6 {[%clk 0:00:03.5]} 29. a4 {[%clk 0:00:45.3]}
29... Qd5 {[%clk 0:00:03.3]} 30. a5 {[%clk 0:00:30.8]} 30... Nc4 {[%clk
0:00:03.4]} 31. Qxa7 {[%clk 0:00:28]} 31... Nd6 {[%clk 0:00:03.5]} 32. Rb8
{[%clk 0:00:25.1]} 32... Qe6 {[%clk 0:00:02.2]} 33. Re3 {[%clk 0:00:19.1]} 33...
Qd7 {[%clk 0:00:01.7]} 34. Qa8 {[%clk 0:00:12.9]} 34... Rxb8 {[%clk 0:00:01.4]}
35. Qxb8+ {[%clk 0:00:13.8]} 35... Kf7 {[%clk 0:00:01.9]} 36. Qb3+ {[%clk
0:00:11.5]} 1-0

[Event "Early-Titled-Tuesday-Blitz-December-26-2023"]
[Site "Chess.com"]
[Date "2023.12.26"]
[Round "4"]
[White "DucksParadise"]
[Black "PawnEatingZombie"]
[Result "1-0"]
[WhiteElo "2477"]
[BlackElo "2159"]
[TimeControl "180+1"]
[EndTime "8:38:30 PST"]
[Termination "DucksParadise won on time"]

1. d4 {[%clk 0:03:00.9]} 1... e6 {[%clk 0:02:59.4]} 2. e4 {[%clk 0:03:00.6]}
2... d5 {[%clk 0:02:57.6]} 3. Nc3 {[%clk 0:02:59.4]} 3... Nf6 {[%clk 0:02:57.1]}
4. e5 {[%clk 0:02:58.8]} 4... Nfd7 {[%clk 0:02:56.8]} 5. f4 {[%clk 0:02:59.4]}
5... c5 {[%clk 0:02:57]} 6. Nf3 {[%clk 0:03:00.3]} 6... Nc6 {[%clk 0:02:57.4]}
7. Be3 {[%clk 0:03:00.5]} 7... Rb8 {[%clk 0:02:57.7]} 8. a3 {[%clk 0:02:40.9]}
8... Qa5 {[%clk 0:02:49.3]} 9. Qd2 {[%clk 0:02:33.3]} 9... b5 {[%clk 0:02:49.1]}
10. Ra2 {[%clk 0:02:24]} 10... a6 {[%clk 0:02:47.9]} 11. dxc5 {[%clk 0:02:17.5]}
11... Bxc5 {[%clk 0:02:43.7]} 12. Bxc5 {[%clk 0:02:15.4]} 12... Nxc5 {[%clk
0:02:42.9]} 13. b4 {[%clk 0:02:15.3]} 13... Nxb4 {[%clk 0:02:29.4]} 14. axb4
{[%clk 0:02:16.2]} 14... Qxb4 {[%clk 0:02:29.5]} 15. Bd3 {[%clk 0:02:04.2]}
15... d4 {[%clk 0:01:54.9]} 16. Nd1 {[%clk 0:01:54.8]} 16... Qb1 {[%clk
0:01:55.2]} 17. Rb2 {[%clk 0:01:53.9]} 17... Qa1 {[%clk 0:01:52.2]} 18. O-O
{[%clk 0:01:51.6]} 18... O-O {[%clk 0:01:32.8]} 19. Qb4 {[%clk 0:01:46]} 19...
Na4 {[%clk 0:01:20.9]} 20. Rb1 {[%clk 0:01:40.9]} 20... Qa2 {[%clk 0:01:14.5]}
21. Qb3 {[%clk 0:01:36.9]} 21... Qxb3 {[%clk 0:01:10.6]} 22. Rxb3 {[%clk
0:01:37.8]} 22... Rd8 {[%clk 0:01:06.7]} 23. Nb2 {[%clk 0:01:32.9]} 23... Nc5
{[%clk 0:00:55]} 24. Rb4 {[%clk 0:01:31.1]} 24... Bd7 {[%clk 0:00:40.1]} 25.
Rxd4 {[%clk 0:01:27.7]} 25... a5 {[%clk 0:00:40.2]} 26. Ra1 {[%clk 0:01:20.8]}
26... a4 {[%clk 0:00:40.2]} 27. Rb4 {[%clk 0:01:17.7]} 27... Na6 {[%clk
0:00:31]} 28. Rd4 {[%clk 0:01:10.5]} 28... Nc5 {[%clk 0:00:16.9]} 29. Nd2 {[%clk
0:01:04.2]} 29... Bc6 {[%clk 0:00:13.5]} 30. Rxd8+ {[%clk 0:01:03.5]} 30... Rxd8
{[%clk 0:00:12.8]} 31. Kf2 {[%clk 0:01:00.4]} 31... b4 {[%clk 0:00:12.7]} 32.
Ke3 {[%clk 0:00:44.1]} 32... a3 {[%clk 0:00:06.8]} 33. Nbc4 {[%clk 0:00:41.5]}
33... Bxg2 {[%clk 0:00:07.2]} 34. Nb3 {[%clk 0:00:37.1]} 34... Na4 {[%clk
0:00:05.4]} 35. Nd6 {[%clk 0:00:35.6]} 35... Nc3 {[%clk 0:00:05]} 36. Nd4 {[%clk
0:00:26.2]} 36... Bd5 {[%clk 0:00:05.4]} 37. N4b5 {[%clk 0:00:24]} 37... Nxb5
{[%clk 0:00:03.2]} 38. Nxb5 {[%clk 0:00:23.7]} 38... g5 {[%clk 0:00:03.1]} 39.
fxg5 {[%clk 0:00:23]} 39... Rb8 {[%clk 0:00:01.1]} 40. c3 {[%clk 0:00:22.1]} 1-0

[Event "Early-Titled-Tuesday-Blitz-December-26-2023"]
[Site "Chess.com"]
[Date "2023.12.26"]
[Round "4"]
[White "Alexander_Donchenko"]
[Black "albi1999"]
[Result "1-0"]
[WhiteElo "2917"]
[BlackElo "2673"]
[TimeControl "180+1"]
[EndTime "8:38:32 PST"]
[Termination "Alexander_Donchenko won by resignation"]

1. Nf3 {[%clk 0:03:00.9]} 1... d5 {[%clk 0:02:59.5]} 2. g3 {[%clk 0:03:01.5]}
2... Nf6 {[%clk 0:02:56]} 3. Bg2 {[%clk 0:03:01.9]} 3... c5 {[%clk 0:02:54.5]}
4. O-O {[%clk 0:03:02.1]} 4... Nc6 {[%clk 0:02:55.4]} 5. d4 {[%clk 0:03:02.5]}
5... e6 {[%clk 0:02:55.7]} 6. c4 {[%clk 0:03:02.1]} 6... dxc4 {[%clk 0:02:56.6]}
7. Ne5 {[%clk 0:03:02.3]} 7... Bd7 {[%clk 0:02:56.1]} 8. Na3 {[%clk 0:03:02]}
8... cxd4 {[%clk 0:02:55.3]} 9. Naxc4 {[%clk 0:03:02.5]} 9... Be7 {[%clk
0:02:54]} 10. Bf4 {[%clk 0:03:02.7]} 10... Nd5 {[%clk 0:02:43.7]} 11. Nxd7
{[%clk 0:02:53.4]} 11... Qxd7 {[%clk 0:02:13.3]} 12. Ne5 {[%clk 0:02:53.3]}
12... Nxe5 {[%clk 0:02:13.3]} 13. Bxe5 {[%clk 0:02:54.2]} 13... O-O {[%clk
0:02:10]} 14. Bxd4 {[%clk 0:02:33.7]} 14... Rfd8 {[%clk 0:02:08.9]} 15. e3
{[%clk 0:02:26.4]} 15... Rac8 {[%clk 0:01:38.2]} 16. Qb3 {[%clk 0:02:23.5]}
16... Bc5 {[%clk 0:01:33.7]} 17. Rfd1 {[%clk 0:02:12.5]} 17... Qe7 {[%clk
0:01:28.1]} 18. h4 {[%clk 0:01:55.4]} 18... h6 {[%clk 0:01:23.5]} 19. Rac1
{[%clk 0:01:26.8]} 19... Bxd4 {[%clk 0:01:19.3]} 20. Rxc8 {[%clk 0:01:26.7]}
20... Rxc8 {[%clk 0:01:18.1]} 21. Rxd4 {[%clk 0:01:27.3]} 21... Rc1+ {[%clk
0:01:11.4]} 22. Kh2 {[%clk 0:01:27.2]} 22... Qf6 {[%clk 0:01:05.8]} 23. Bxd5
{[%clk 0:01:23.1]} 23... exd5 {[%clk 0:00:33.1]} 24. Kg2 {[%clk 0:01:20.5]}
24... Qa6 {[%clk 0:00:06.3]} 25. Rd3 {[%clk 0:01:00.3]} 25... Qc4 {[%clk
0:00:04.3]} 26. Qxc4 {[%clk 0:00:57.9]} 26... dxc4 {[%clk 0:00:04.9]} 27. Rd8+
{[%clk 0:00:58.3]} 27... Kh7 {[%clk 0:00:04.9]} 28. Rd7 {[%clk 0:00:59.2]} 28...
Kg6 {[%clk 0:00:02.9]} 29. Rxb7 {[%clk 0:00:59]} 29... Rb1 {[%clk 0:00:03.4]}
30. Rb4 {[%clk 0:00:50.6]} 30... a5 {[%clk 0:00:02.3]} 31. Rxc4 {[%clk
0:00:41.1]} 31... Rxb2 {[%clk 0:00:02.5]} 32. Ra4 {[%clk 0:00:40.5]} 32... Rb5
{[%clk 0:00:03]} 33. Kf3 {[%clk 0:00:40.3]} 33... f5 {[%clk 0:00:03.2]} 34. Rd4
{[%clk 0:00:37.4]} 34... Rb2 {[%clk 0:00:02.2]} 35. Rd6+ {[%clk 0:00:36]} 35...
Kf7 {[%clk 0:00:01.8]} 36. Rd5 {[%clk 0:00:36.3]} 36... Rxa2 {[%clk 0:00:01.2]}
37. Rxf5+ {[%clk 0:00:37]} 37... Ke6 {[%clk 0:00:01.9]} 38. Rb5 {[%clk 0:00:37]}
38... a4 {[%clk 0:00:01.6]} 39. Rb7 {[%clk 0:00:35.9]} 39... a3 {[%clk
0:00:01.7]} 40. Rxg7 {[%clk 0:00:35.7]} 40... Ra1 {[%clk 0:00:02.1]} 41. Ra7
{[%clk 0:00:35.5]} 41... h5 {[%clk 0:00:02.8]} 42. Kf4 {[%clk 0:00:26.6]} 42...
a2 {[%clk 0:00:03.7]} 43. Kg5 {[%clk 0:00:25.5]} 43... Rf1 {[%clk 0:00:02.6]}
44. Rxa2 {[%clk 0:00:24.8]} 1-0

[Event "Early-Titled-Tuesday-Blitz-December-26-2023"]
[Site "Chess.com"]
[Date "2023.12.26"]
[Round "4"]
[White "Lady_Nika"]
[Black "maciek_92"]
[Result "0-1"]
[WhiteElo "2603"]
[BlackElo "2868"]
[TimeControl "180+1"]
[EndTime "8:38:32 PST"]
[Termination "maciek_92 won on time"]

1. d4 {[%clk 0:03:00.9]} 1... Nf6 {[%clk 0:02:59]} 2. e3 {[%clk 0:03:01.1]} 2...
d5 {[%clk 0:02:58.8]} 3. f4 {[%clk 0:03:01.1]} 3... c5 {[%clk 0:02:58.5]} 4. Nf3
{[%clk 0:03:02]} 4... Nc6 {[%clk 0:02:58.6]} 5. c3 {[%clk 0:03:01.3]} 5... h6
{[%clk 0:02:57.6]} 6. Bd3 {[%clk 0:03:01.5]} 6... g5 {[%clk 0:02:58]} 7. Na3
{[%clk 0:02:56.4]} 7... gxf4 {[%clk 0:02:48.6]} 8. exf4 {[%clk 0:02:56.4]} 8...
Rg8 {[%clk 0:02:49.5]} 9. O-O {[%clk 0:02:52.8]} 9... Bg4 {[%clk 0:02:47.3]} 10.
Be3 {[%clk 0:02:50.6]} 10... cxd4 {[%clk 0:02:44.9]} 11. Bxd4 {[%clk 0:02:42.5]}
11... e6 {[%clk 0:02:45.5]} 12. Qa4 {[%clk 0:02:34.8]} 12... Bxf3 {[%clk
0:02:43.6]} 13. Rxf3 {[%clk 0:02:34.3]} 13... a6 {[%clk 0:02:37]} 14. f5 {[%clk
0:02:28.8]} 14... Be7 {[%clk 0:02:16.7]} 15. fxe6 {[%clk 0:02:28.5]} 15... fxe6
{[%clk 0:02:17.6]} 16. Raf1 {[%clk 0:02:26.6]} 16... Nd7 {[%clk 0:02:12.6]} 17.
Bh7 {[%clk 0:02:18.6]} 17... Rg5 {[%clk 0:02:01.4]} 18. Be3 {[%clk 0:02:15.2]}
18... Rg7 {[%clk 0:02:00.7]} 19. Bb1 {[%clk 0:02:03.2]} 19... Bg5 {[%clk
0:01:46]} 20. Bd4 {[%clk 0:01:46.7]} 20... Nxd4 {[%clk 0:01:24.1]} 21. Qxd4
{[%clk 0:01:46.3]} 21... Qe7 {[%clk 0:01:24.3]} 22. h4 {[%clk 0:01:40.8]} 22...
Bxh4 {[%clk 0:01:13.8]} 23. c4 {[%clk 0:01:24]} 23... Qg5 {[%clk 0:00:59.9]} 24.
R3f2 {[%clk 0:00:34.1]} 24... Bxf2+ {[%clk 0:00:59]} 25. Rxf2 {[%clk 0:00:34.4]}
25... Qe5 {[%clk 0:00:44.6]} 26. Qh4 {[%clk 0:00:27.1]} 26... Qg5 {[%clk
0:00:33.5]} 27. Qd4 {[%clk 0:00:26.5]} 27... Qg4 {[%clk 0:00:29.1]} 28. Qe3
{[%clk 0:00:18]} 28... d4 {[%clk 0:00:28.2]} 29. Qxh6 {[%clk 0:00:17.2]} 29...
O-O-O {[%clk 0:00:26.9]} 30. c5 {[%clk 0:00:11.8]} 30... Ne5 {[%clk 0:00:20.6]}
31. c6 {[%clk 0:00:06.8]} 31... Rdg8 {[%clk 0:00:18.7]} 32. cxb7+ {[%clk
0:00:06.4]} 32... Kxb7 {[%clk 0:00:18.4]} 33. Qh2 {[%clk 0:00:02.4]} 33... Qd1+
{[%clk 0:00:15.2]} 34. Rf1 {[%clk 0:00:02.2]} 34... Nf3+ {[%clk 0:00:15.8]} 0-1

[Event "Early-Titled-Tuesday-Blitz-December-26-2023"]
[Site "Chess.com"]
[Date "2023.12.26"]
[Round "4"]
[White "Barbix1"]
[Black "SmirnovTimofey2000"]
[Result "1/2-1/2"]
[WhiteElo "2274"]
[BlackElo "2021"]
[TimeControl "180+1"]
[EndTime "8:38:32 PST"]
[Termination "Game drawn by repetition"]

1. e4 {[%clk 0:03:00.9]} 1... e5 {[%clk 0:02:59.9]} 2. Nf3 {[%clk 0:03:00.2]}
2... Nf6 {[%clk 0:02:59.8]} 3. d4 {[%clk 0:02:41]} 3... Nxe4 {[%clk 0:02:59.7]}
4. Bd3 {[%clk 0:02:30.3]} 4... Nc6 {[%clk 0:02:33.7]} 5. d5 {[%clk 0:01:57.9]}
5... Nf6 {[%clk 0:02:13.4]} 6. dxc6 {[%clk 0:01:47.3]} 6... e4 {[%clk
0:02:13.3]} 7. O-O {[%clk 0:01:05.4]} 7... exd3 {[%clk 0:02:09.3]} 8. Re1+
{[%clk 0:01:05.2]} 8... Be7 {[%clk 0:02:08.3]} 9. Qxd3 {[%clk 0:00:57.4]} 9...
dxc6 {[%clk 0:02:03.6]} 10. Qe2 {[%clk 0:00:48.3]} 10... Be6 {[%clk 0:01:56.5]}
11. Ng5 {[%clk 0:00:48.2]} 11... Bg4 {[%clk 0:01:32.8]} 12. Qe5 {[%clk
0:00:19.1]} 12... h6 {[%clk 0:01:20.3]} 13. Ne4 {[%clk 0:00:11.2]} 13... Be6
{[%clk 0:00:59.2]} 14. Bf4 {[%clk 0:00:05.4]} 14... Nxe4 {[%clk 0:00:44.4]} 15.
Qxe4 {[%clk 0:00:04.7]} 15... O-O {[%clk 0:00:37.8]} 16. Nc3 {[%clk 0:00:04.9]}
16... Bg5 {[%clk 0:00:32.1]} 17. Rad1 {[%clk 0:00:04.7]} 17... Qe7 {[%clk
0:00:30]} 18. Bg3 {[%clk 0:00:03]} 18... Rac8 {[%clk 0:00:26.1]} 19. h4 {[%clk
0:00:03.1]} 19... Bf6 {[%clk 0:00:25.3]} 20. a3 {[%clk 0:00:02.9]} 20... Bxc3
{[%clk 0:00:25]} 21. bxc3 {[%clk 0:00:02.8]} 21... Qf6 {[%clk 0:00:25.1]} 22.
Be5 {[%clk 0:00:02.5]} 22... Qf5 {[%clk 0:00:24.6]} 23. Rd3 {[%clk 0:00:02.4]}
23... Qxe4 {[%clk 0:00:24.7]} 24. Rxe4 {[%clk 0:00:03]} 24... Bf5 {[%clk
0:00:24.4]} 25. Rg3 {[%clk 0:00:02.2]} 25... Bxe4 {[%clk 0:00:23.7]} 26. Rxg7+
{[%clk 0:00:02.3]} 26... Kh8 {[%clk 0:00:20.7]} 27. Rxf7+ {[%clk 0:00:02.6]}
27... Kg8 {[%clk 0:00:18.6]} 28. Rg7+ {[%clk 0:00:03]} 28... Kh8 {[%clk
0:00:18.4]} 29. Rxc7+ {[%clk 0:00:03.6]} 29... Kg8 {[%clk 0:00:16.2]} 30. Rg7+
{[%clk 0:00:04.2]} 30... Kh8 {[%clk 0:00:16.6]} 31. Rxb7+ {[%clk 0:00:04.6]}
31... Kg8 {[%clk 0:00:17]} 32. Rg7+ {[%clk 0:00:05]} 32... Kh8 {[%clk
0:00:17.6]} 33. Rxa7+ {[%clk 0:00:05.3]} 33... Kg8 {[%clk 0:00:18.1]} 34. Rg7+
{[%clk 0:00:05.4]} 34... Kh8 {[%clk 0:00:18.4]} 35. Rf7+ {[%clk 0:00:03.9]}
35... Kg8 {[%clk 0:00:18.4]} 36. Rg7+ {[%clk 0:00:04.4]} 36... Kh8 {[%clk
0:00:18.7]} 37. Rf7+ {[%clk 0:00:04.9]} 37... Kg8 {[%clk 0:00:16.8]} 38. Rg7+
{[%clk 0:00:05.6]} 1/2-1/2

[Event "Early-Titled-Tuesday-Blitz-December-26-2023"]
[Site "Chess.com"]
[Date "2023.12.26"]
[Round "4"]
[White "Azalea95"]
[Black "Shuvalov"]
[Result "0-1"]
[WhiteElo "2341"]
[BlackElo "2537"]
[TimeControl "180+1"]
[EndTime "8:38:36 PST"]
[Termination "Shuvalov won by resignation"]

1. e4 {[%clk 0:02:53.4]} 1... e6 {[%clk 0:03:00.1]} 2. d4 {[%clk 0:02:50.1]}
2... d5 {[%clk 0:03:00.3]} 3. Nc3 {[%clk 0:02:49.9]} 3... Bb4 {[%clk 0:02:59.9]}
4. Ne2 {[%clk 0:02:48.9]} 4... Nc6 {[%clk 0:02:59.3]} 5. a3 {[%clk 0:02:32.2]}
5... Ba5 {[%clk 0:02:59.2]} 6. exd5 {[%clk 0:02:25]} 6... exd5 {[%clk
0:02:58.8]} 7. Nf4 {[%clk 0:02:25.7]} 7... Nf6 {[%clk 0:02:57]} 8. Be2 {[%clk
0:02:22.3]} 8... O-O {[%clk 0:02:55.4]} 9. O-O {[%clk 0:02:22.3]} 9... Re8
{[%clk 0:02:47.9]} 10. Bf3 {[%clk 0:02:22.3]} 10... Bxc3 {[%clk 0:02:42.1]} 11.
bxc3 {[%clk 0:02:23.2]} 11... Na5 {[%clk 0:02:40.4]} 12. Nd3 {[%clk 0:02:10.5]}
12... Nc4 {[%clk 0:02:37.9]} 13. Bg5 {[%clk 0:02:10.5]} 13... c6 {[%clk
0:02:35.6]} 14. Qc1 {[%clk 0:02:04.6]} 14... h6 {[%clk 0:02:24.5]} 15. Bh4
{[%clk 0:01:54.5]} 15... Bf5 {[%clk 0:02:17.7]} 16. Re1 {[%clk 0:01:41.7]} 16...
Rxe1+ {[%clk 0:02:12]} 17. Qxe1 {[%clk 0:01:42.6]} 17... g5 {[%clk 0:02:07.6]}
18. Bg3 {[%clk 0:01:41.3]} 18... Ne4 {[%clk 0:02:07.1]} 19. Ne5 {[%clk
0:01:30.2]} 19... Ned6 {[%clk 0:01:52.2]} 20. Qe2 {[%clk 0:01:23.3]} 20... f6
{[%clk 0:01:44.2]} 21. Nd3 {[%clk 0:01:22.9]} 21... Qe8 {[%clk 0:01:33.9]} 22.
Qd1 {[%clk 0:01:03.3]} 22... Nb5 {[%clk 0:01:19.4]} 23. Qe1 {[%clk 0:00:49.7]}
23... Qxe1+ {[%clk 0:01:18.4]} 24. Rxe1 {[%clk 0:00:49.6]} 24... Kf8 {[%clk
0:01:03.3]} 25. Nc5 {[%clk 0:00:30.7]} 25... b6 {[%clk 0:00:57.5]} 26. Ne6+
{[%clk 0:00:30.6]} 26... Kf7 {[%clk 0:00:47.3]} 27. Bh5+ {[%clk 0:00:10.6]}
27... Bg6 {[%clk 0:00:46.9]} 28. Bxg6+ {[%clk 0:00:09.6]} 28... Kxg6 {[%clk
0:00:47.8]} 29. Nc7 {[%clk 0:00:10.5]} 29... Nxc7 {[%clk 0:00:42.4]} 30. Bxc7
{[%clk 0:00:11.4]} 30... Kf7 {[%clk 0:00:36]} 31. a4 {[%clk 0:00:08.2]} 31...
Re8 {[%clk 0:00:33.1]} 32. Rxe8 {[%clk 0:00:07.6]} 32... Kxe8 {[%clk 0:00:34]}
33. Kf1 {[%clk 0:00:06.6]} 33... Kd7 {[%clk 0:00:30.3]} 34. Bb8 {[%clk
0:00:06.8]} 34... a5 {[%clk 0:00:28.3]} 35. Ke2 {[%clk 0:00:06.3]} 35... Nb2
{[%clk 0:00:24.9]} 36. g4 {[%clk 0:00:03.9]} 36... Nxa4 {[%clk 0:00:24.5]} 37.
Bg3 {[%clk 0:00:02.6]} 37... Nxc3+ {[%clk 0:00:23.4]} 38. Kd3 {[%clk 0:00:03.1]}
38... Nb5 {[%clk 0:00:21]} 0-1

[Event "Early-Titled-Tuesday-Blitz-December-26-2023"]
[Site "Chess.com"]
[Date "2023.12.26"]
[Round "4"]
[White "Kotlyar_K"]
[Black "pirulillo"]
[Result "0-1"]
[WhiteElo "2495"]
[BlackElo "2288"]
[TimeControl "180+1"]
[EndTime "8:38:39 PST"]
[Termination "pirulillo won by checkmate"]

1. e4 {[%clk 0:02:56.5]} 1... c5 {[%clk 0:03:00.5]} 2. Nf3 {[%clk 0:02:56.4]}
2... e6 {[%clk 0:03:01.1]} 3. d4 {[%clk 0:02:57.3]} 3... cxd4 {[%clk 0:03:01.8]}
4. Nxd4 {[%clk 0:02:58.2]} 4... Nf6 {[%clk 0:03:02.1]} 5. Nc3 {[%clk 0:02:58.8]}
5... Nc6 {[%clk 0:03:02.4]} 6. Ndb5 {[%clk 0:02:59.3]} 6... d6 {[%clk
0:03:02.8]} 7. Bf4 {[%clk 0:02:58.3]} 7... e5 {[%clk 0:03:03.4]} 8. Bg5 {[%clk
0:02:59]} 8... a6 {[%clk 0:03:03.8]} 9. Na3 {[%clk 0:02:59.6]} 9... b5 {[%clk
0:03:03]} 10. Nd5 {[%clk 0:03:00.2]} 10... Be7 {[%clk 0:03:02.8]} 11. Bxf6
{[%clk 0:03:00.9]} 11... Bxf6 {[%clk 0:03:03.5]} 12. c3 {[%clk 0:03:01.8]} 12...
O-O {[%clk 0:03:02.3]} 13. Nc2 {[%clk 0:03:01.1]} 13... Rb8 {[%clk 0:02:59.1]}
14. a4 {[%clk 0:02:56.5]} 14... bxa4 {[%clk 0:02:58.7]} 15. Ncb4 {[%clk
0:02:56.8]} 15... Nxb4 {[%clk 0:02:56.1]} 16. cxb4 {[%clk 0:02:42]} 16... Bb7
{[%clk 0:02:53.3]} 17. Rxa4 {[%clk 0:02:40.4]} 17... Bg5 {[%clk 0:02:31.8]} 18.
Bc4 {[%clk 0:02:36.7]} 18... Kh8 {[%clk 0:02:21.7]} 19. O-O {[%clk 0:02:35.1]}
19... f5 {[%clk 0:02:08]} 20. exf5 {[%clk 0:02:25.5]} 20... Rxf5 {[%clk
0:02:08.9]} 21. Bxa6 {[%clk 0:02:09.6]} 21... Bxd5 {[%clk 0:02:03.3]} 22. Qxd5
{[%clk 0:02:08.8]} 22... Qb6 {[%clk 0:02:03.7]} 23. Bd3 {[%clk 0:02:00.7]} 23...
Rf4 {[%clk 0:01:59.6]} 24. Ra8 {[%clk 0:01:26.6]} 24... Qxb4 {[%clk 0:01:54.7]}
25. Rxb8+ {[%clk 0:01:18.4]} 25... Qxb8 {[%clk 0:01:55.6]} 26. Ra1 {[%clk
0:01:18.4]} 26... Rf8 {[%clk 0:01:54.6]} 27. b3 {[%clk 0:01:10]} 27... Qb6
{[%clk 0:01:52.2]} 28. Ra2 {[%clk 0:01:06.9]} 28... Be3 {[%clk 0:01:45.2]} 29.
Qf3 {[%clk 0:00:35.9]} 29... Bxf2+ {[%clk 0:01:21.6]} 30. Kf1 {[%clk 0:00:26.5]}
30... Qd8 {[%clk 0:01:11]} 31. Qh5 {[%clk 0:00:14.3]} 31... Bd4+ {[%clk
0:01:00.3]} 32. Ke1 {[%clk 0:00:14.7]} 32... g6 {[%clk 0:00:54.7]} 33. Bxg6
{[%clk 0:00:14.6]} 33... Qe7 {[%clk 0:00:54]} 34. Bd3 {[%clk 0:00:13.4]} 34...
e4 {[%clk 0:00:49.9]} 35. Bc4 {[%clk 0:00:12.6]} 35... Qf6 {[%clk 0:00:46.9]}
36. Qe2 {[%clk 0:00:11.3]} 36... Bc3+ {[%clk 0:00:45.1]} 37. Kd1 {[%clk
0:00:11]} 37... Qd4+ {[%clk 0:00:44.1]} 38. Kc1 {[%clk 0:00:10.5]} 38... d5
{[%clk 0:00:43.9]} 39. Bb5 {[%clk 0:00:03.4]} 39... Bb4 {[%clk 0:00:35]} 40. Qd1
{[%clk 0:00:02.7]} 40... Rc8+ {[%clk 0:00:27.8]} 41. Rc2 {[%clk 0:00:02.3]}
41... Qa1# {[%clk 0:00:27.1]} 0-1

[Event "Early-Titled-Tuesday-Blitz-December-26-2023"]
[Site "Chess.com"]
[Date "2023.12.26"]
[Round "4"]
[White "nindjaxx8"]
[Black "PedroGil25"]
[Result "0-1"]
[WhiteElo "2571"]
[BlackElo "2394"]
[TimeControl "180+1"]
[EndTime "8:38:42 PST"]
[Termination "PedroGil25 won by checkmate"]

1. d4 {[%clk 0:03:00.1]} 1... Nf6 {[%clk 0:03:00]} 2. c4 {[%clk 0:02:59.7]} 2...
e6 {[%clk 0:03:00.6]} 3. Nc3 {[%clk 0:02:58.6]} 3... Bb4 {[%clk 0:03:00.9]} 4.
Qc2 {[%clk 0:02:57.4]} 4... c5 {[%clk 0:03:00.7]} 5. e3 {[%clk 0:02:57.2]} 5...
O-O {[%clk 0:02:59.8]} 6. Nf3 {[%clk 0:02:55.9]} 6... cxd4 {[%clk 0:02:59.3]} 7.
exd4 {[%clk 0:02:54.5]} 7... d5 {[%clk 0:02:58.9]} 8. cxd5 {[%clk 0:02:53.6]}
8... exd5 {[%clk 0:02:54.3]} 9. Be2 {[%clk 0:02:53.3]} 9... Re8 {[%clk
0:02:54.4]} 10. O-O {[%clk 0:02:48]} 10... h6 {[%clk 0:02:51.5]} 11. Bf4 {[%clk
0:02:47.5]} 11... Nc6 {[%clk 0:02:51.5]} 12. Rad1 {[%clk 0:02:40.9]} 12... Ne4
{[%clk 0:02:44.5]} 13. Ne5 {[%clk 0:02:33.9]} 13... Qf6 {[%clk 0:02:41.5]} 14.
Bg3 {[%clk 0:02:28.4]} 14... Bxc3 {[%clk 0:02:37.6]} 15. bxc3 {[%clk 0:02:24.1]}
15... Bf5 {[%clk 0:02:27.3]} 16. Nd3 {[%clk 0:02:18.6]} 16... Nxg3 {[%clk
0:02:25.7]} 17. hxg3 {[%clk 0:02:15.6]} 17... Na5 {[%clk 0:02:23]} 18. Rfe1
{[%clk 0:02:01.6]} 18... Rac8 {[%clk 0:02:22]} 19. Qc1 {[%clk 0:01:57.8]} 19...
Nc4 {[%clk 0:02:20.5]} 20. Nf4 {[%clk 0:01:54.5]} 20... Nb6 {[%clk 0:02:10.6]}
21. Bf3 {[%clk 0:01:53.1]} 21... Be4 {[%clk 0:02:06.6]} 22. Bxe4 {[%clk
0:01:48]} 22... dxe4 {[%clk 0:02:07.5]} 23. Qc2 {[%clk 0:01:39]} 23... Qc6
{[%clk 0:02:03.2]} 24. Rc1 {[%clk 0:01:34.6]} 24... Nd5 {[%clk 0:01:51.5]} 25.
Rxe4 {[%clk 0:01:08.7]} 25... Nxc3 {[%clk 0:01:40.1]} 26. Rxe8+ {[%clk
0:01:06.3]} 26... Qxe8 {[%clk 0:01:41]} 27. Kh1 {[%clk 0:00:55.3]} 27... Rc6
{[%clk 0:01:28.2]} 28. Qb3 {[%clk 0:00:47.1]} 28... Ne4 {[%clk 0:01:25.6]} 29.
Rc2 {[%clk 0:00:39.3]} 29... Nxf2+ {[%clk 0:01:18.6]} 30. Kh2 {[%clk 0:00:29.2]}
30... Ng4+ {[%clk 0:01:13.4]} 31. Kh3 {[%clk 0:00:28.1]} 31... Qd7 {[%clk
0:01:12.8]} 32. Rxc6 {[%clk 0:00:25.7]} 32... bxc6 {[%clk 0:01:09.4]} 33. Qb8+
{[%clk 0:00:18.6]} 33... Kh7 {[%clk 0:01:09.1]} 34. Qb1+ {[%clk 0:00:19.4]}
34... g6 {[%clk 0:01:09]} 35. Qb3 {[%clk 0:00:18.9]} 35... h5 {[%clk 0:01:01.7]}
36. a4 {[%clk 0:00:14.6]} 36... Kg7 {[%clk 0:00:54.3]} 37. Qc3 {[%clk
0:00:11.3]} 37... Kh7 {[%clk 0:00:41.9]} 38. Qb3 {[%clk 0:00:08.5]} 38... Qf5
{[%clk 0:00:35.9]} 39. Qb7 {[%clk 0:00:05.5]} 39... h4 {[%clk 0:00:33.6]} 40.
Ne2 {[%clk 0:00:02.1]} 40... Ne3+ {[%clk 0:00:26.7]} 41. Kh2 {[%clk 0:00:02.6]}
41... Nf1+ {[%clk 0:00:26.8]} 42. Kg1 {[%clk 0:00:02.1]} 42... Nxg3 {[%clk
0:00:26.9]} 43. Nc1 {[%clk 0:00:01.9]} 43... Qf1+ {[%clk 0:00:26.3]} 44. Kh2
{[%clk 0:00:02.4]} 44... Qh1# {[%clk 0:00:27.2]} 0-1